fUSD/lending_fUSD_20240329
["ID","MTS","AMOUNT","RATE_DAILY","PERIOD"]
[320932532,1711716655809,-3679.89,0.00052767,120]
[320932533,1711716655818,-874.18,0.00052767,120]
[320932534,1711716655827,-306.0518503,0.00052767,120]
[320932535,1711716655836,-523.45,0.00052767,120]
[320932536,1711716655845,-2750.62,0.00052767,120]
[320932537,1711716655854,-500.0,0.00052767,120]
[320932538,1711716655863,-1000.0,0.00052776,120]
[320932539,1711716655872,-190.47272846,0.00052778,30]
[320932540,1711716655880,-152.66,0.000528,7]
[320932541,1711716655889,-152.66,0.000528,7]
[320932542,1711716655898,-152.66,0.000528,7]
[320932543,1711716655907,-152.66,0.000528,7]
[320932544,1711716655916,-152.66,0.000528,7]
[320932545,1711716655925,-152.66,0.000528,7]
[320932546,1711716655933,-152.66,0.000528,7]
[320932547,1711716655942,-152.66,0.000528,7]
[320932548,1711716655951,-152.66,0.000528,7]
[320932549,1711716655961,-152.66,0.000528,7]
[320932550,1711716655974,-152.66,0.000528,7]
[320932551,1711716655983,-152.66,0.000528,7]
[320932552,1711716655993,-152.66,0.000528,7]
[320932553,1711716656002,-152.66,0.000528,7]
[320932554,1711716656011,-168.45304087,0.000528,94]
[320932555,1711716656021,-2835.29,0.000528,7]
[320932556,1711716656030,-2835.29,0.000528,7]
[320932557,1711716656040,-2835.29,0.000528,7]
[320932558,1711716656049,-2835.29,0.000528,7]
[320932559,1711716656058,-2835.29,0.000528,7]
[320932560,1711716656068,-2835.29,0.000528,7]
[320932561,1711716656078,-2835.29,0.000528,7]
[320932562,1711716656087,-2835.29,0.000528,7]
[320932563,1711716656097,-2835.29,0.000528,7]
[320932564,1711716656107,-2835.29,0.000528,7]
[320932565,1711716656117,-2835.29,0.000528,7]
[320932566,1711716656127,-2835.29,0.000528,7]
[320932567,1711716656136,-2835.29,0.000528,7]
[320932568,1711716656146,-2835.29,0.000528,7]
[320932569,1711716656156,-2835.29,0.000528,7]
[320932570,1711716656165,-2835.29,0.000528,7]
[320932571,1711716656175,-2835.29,0.000528,7]
[320932572,1711716656186,-2835.29,0.000528,7]
[320932573,1711716656195,-2835.29,0.000528,7]
[320932574,1711716656205,-2835.29,0.000528,7]
[320932575,1711716656215,-151.0,0.000528,120]
[320932576,1711716656224,-267.31111111,0.00052822,120]
[320932577,1711716656235,-1782.96,0.00052876,120]
[320932578,1711716656244,-903.7,0.00052876,120]
[320932579,1711716656253,-500.0,0.00052876,120]
[320932580,1711716656263,-606.26,0.00052876,120]
[320932581,1711716656272,-1141.6,0.00052876,120]
[320932582,1711716656281,-809.83,0.00052876,120]
[320932583,1711716656291,-502.1,0.00052876,120]
[320932584,1711716656300,-4769.79,0.00052876,120]
[320932585,1711716656310,-650.47,0.00052876,120]
[320932586,1711716656320,-379.15083594,0.00052876,120]
[320932587,1711716656331,-500.0,0.00052876,120]
[320932588,1711716656341,-500.0,0.00052876,120]
[320932589,1711716656351,-528.43,0.00052876,120]
[320932590,1711716656361,-534.25,0.00052876,21]
[320932591,1711716656370,-500.0,0.00052876,120]
[320932592,1711716656380,-500.0,0.00052876,120]
[320932593,1711716656390,-500.0,0.00052876,120]
[320932594,1711716656400,-500.0,0.00052876,120]
[320932595,1711716656411,-1337.23,0.00052876,120]
[320932596,1711716656420,-500.0,0.00052876,120]
[320932597,1711716656430,-576.41,0.00052876,120]
[320932598,1711716656440,-935.52,0.00052876,120]
[320932599,1711716656449,-500.0,0.00052876,120]
[320932600,1711716656458,-609.11,0.00052876,120]
[320932601,1711716656467,-500.0,0.00052876,120]
[320932602,1711716656477,-531.05,0.00052876,120]
[320932603,1711716656486,-500.0,0.00052876,120]
[320932604,1711716656496,-500.0,0.00052876,120]
[320932605,1711716656505,-731.96,0.00052876,120]
[320932606,1711716656514,-1153.11,0.00052876,120]
[320932607,1711716656523,-999.05,0.00052876,120]
[320932608,1711716656533,-999.22,0.00052876,120]
[320932609,1711716656543,-500.0,0.00052876,120]
[320932610,1711716656552,-500.0,0.00052876,120]
[320932611,1711716656561,-1603.08,0.00052876,120]
[320932612,1711716656571,-641.15,0.00052876,120]
[320932613,1711716656581,-500.0,0.00052876,120]
[320932614,1711716656591,-500.0,0.00052876,120]
[320932615,1711716656600,-616.6,0.00052876,120]
[320932616,1711716656610,-500.0,0.00052876,120]
[320932617,1711716656619,-1045.1,0.00052876,120]
[320932618,1711716656629,-500.0,0.00052876,120]
[320932619,1711716656639,-505.71,0.00052876,120]
[320932620,1711716656648,-678.59,0.00052876,120]
[320932621,1711716656657,-500.0,0.00052876,120]
[320932622,1711716656667,-581.67,0.00052876,120]
[320932623,1711716656677,-500.0,0.00052876,120]
[320932624,1711716656686,-732.12,0.00052876,120]
[320932625,1711716656695,-509.86,0.00052876,120]
[320932626,1711716656704,-1070.64,0.00052876,120]
[320932627,1711716656713,-779.78,0.00052876,120]
[320932628,1711716656722,-500.0,0.00052876,120]
[320932629,1711716656733,-500.0,0.00052876,120]
[320932630,1711716656742,-1366.39,0.00052876,120]
[320932631,1711716656751,-566.51,0.00052876,120]
[320932632,1711716656760,-500.0,0.00052876,120]
[320932633,1711716656769,-1473.55,0.00052876,120]
[320932634,1711716656778,-542.47,0.00052876,120]
[320932635,1711716656787,-541.19,0.00052876,120]
[320932636,1711716656797,-500.0,0.00052876,120]
[320932637,1711716656806,-500.0,0.00052876,120]
[320932638,1711716656816,-520.06,0.00052876,120]
[320932639,1711716656825,-500.0,0.00052876,120]
[320932640,1711716656835,-500.0,0.00052876,120]
[320932641,1711716656844,-385.95676948,0.00052876,120]
[320932642,1711716656853,-500.0,0.00052876,120]
[320932643,1711716656862,-618.22,0.00052876,120]
[320932644,1711716656872,-7484.31,0.00052876,120]
[320932645,1711716656881,-708.95,0.00052876,120]
[320932646,1711716656891,-756.87,0.00052876,120]
[320932647,1711716656900,-500.0,0.00052876,120]
[320932648,1711716656910,-1441.43,0.00052876,120]
[320932649,1711716656919,-1273.33,0.00052876,120]
[320932650,1711716656928,-674.57,0.00052876,120]
[320932651,1711716656938,-555.88807856,0.0005288,120]
[320932652,1711716656947,-555.88807856,0.0005288,120]
[320932653,1711716656957,-555.88807856,0.0005288,120]
[320932654,1711716656966,-555.88807856,0.0005288,120]
[320932655,1711716656976,-555.88807856,0.0005288,120]
[320932656,1711716656986,-555.88807856,0.0005288,120]
[320932657,1711716656996,-555.88807856,0.0005288,120]
[320932658,1711716657006,-555.88807856,0.0005288,120]
[320932659,1711716657015,-555.88807856,0.0005288,120]
[320932660,1711716657025,-555.88807856,0.0005288,120]
[320932661,1711716657035,-555.88807856,0.0005288,120]
[320932662,1711716657045,-555.88807856,0.0005288,120]
[320932663,1711716657054,-555.88807856,0.0005288,120]
[320932664,1711716657063,-555.88807856,0.0005288,120]
[320932665,1711716657073,-555.88807856,0.0005288,120]
[320932666,1711716657082,-555.88807856,0.0005288,120]
[320932667,1711716657092,-555.88807856,0.0005288,120]
[320932668,1711716657101,-555.88807856,0.0005288,120]
[320932669,1711716657111,-555.88807856,0.0005288,120]
[320932670,1711716657121,-556.38,0.0005288,120]
[320932671,1711716657130,-348.13770081,0.0005288,120]
[320932672,1711716657140,-348.13770081,0.0005288,120]
[320932673,1711716657150,-348.13770081,0.0005288,120]
[320932674,1711716657159,-348.13770081,0.0005288,120]
[320932675,1711716657169,-348.13770081,0.0005288,120]
[320932676,1711716657178,-348.13770081,0.0005288,120]
[320932677,1711716657187,-348.13770081,0.0005288,120]
[320932678,1711716657196,-348.13770081,0.0005288,120]
[320932679,1711716657206,-348.13770081,0.0005288,120]
[320932680,1711716657215,-348.13770081,0.0005288,120]
[320932681,1711716657224,-348.13770081,0.0005288,120]
[320932682,1711716657234,-348.13770081,0.0005288,120]
[320932683,1711716657244,-348.13770081,0.0005288,120]
[320932684,1711716657253,-348.13770081,0.0005288,120]
[320932685,1711716657262,-348.13770081,0.0005288,120]
[320932686,1711716657272,-348.13770081,0.0005288,120]
[320932687,1711716657281,-348.13770081,0.0005288,120]
[320932688,1711716657291,-348.13770081,0.0005288,120]
[320932689,1711716657300,-348.13770081,0.0005288,120]
[320932690,1711716657310,-348.63,0.0005288,120]
[320932691,1711716657319,-157.38688174,0.0005288,120]
[320932692,1711716657331,-157.38688174,0.0005288,120]
[320932693,1711716657340,-157.38688174,0.0005288,120]
[320932694,1711716657350,-157.38688174,0.0005288,120]
[320932695,1711716657359,-157.38688174,0.0005288,120]
[320932696,1711716657369,-157.38688174,0.0005288,120]
[320932697,1711716657378,-157.38688174,0.0005288,120]
[320932698,1711716657387,-157.38688174,0.0005288,120]
[320932699,1711716657396,-157.38688174,0.0005288,120]
[320932700,1711716657406,-157.38688174,0.0005288,120]
[320932701,1711716657416,-157.38688174,0.0005288,120]
[320932702,1711716657425,-157.38688174,0.0005288,120]
[320932703,1711716657434,-157.38688174,0.0005288,120]
[320932704,1711716657444,-157.38688174,0.0005288,120]
[320932705,1711716657454,-157.38688174,0.0005288,120]
[320932706,1711716657463,-157.38688174,0.0005288,120]
[320932707,1711716657473,-157.38688174,0.0005288,120]
[320932708,1711716657483,-157.88,0.0005288,120]
[320932709,1711716657493,-329.52876488,0.0005288,120]
[320932710,1711716657502,-329.52876488,0.0005288,120]
[320932711,1711716657511,-329.52876488,0.0005288,120]
[320932712,1711716657520,-329.52876488,0.0005288,120]
[320932713,1711716657529,-329.52876488,0.0005288,120]
[320932714,1711716657538,-329.52876488,0.0005288,120]
[320932715,1711716657547,-329.52876488,0.0005288,120]
[320932716,1711716657556,-329.52876488,0.0005288,120]
[320932717,1711716657565,-329.52876488,0.0005288,120]
[320932718,1711716657574,-329.52876488,0.0005288,120]
[320932719,1711716657583,-329.52876488,0.0005288,120]
[320932720,1711716657592,-329.52876488,0.0005288,120]
[320932721,1711716657602,-329.52876488,0.0005288,120]
[320932722,1711716657611,-329.52876488,0.0005288,120]
[320932723,1711716657620,-329.52876488,0.0005288,120]
[320932724,1711716657629,-329.52876488,0.0005288,120]
[320932725,1711716657639,-329.52876488,0.0005288,120]
[320932726,1711716657648,-329.52876488,0.0005288,120]
[320932727,1711716657658,-329.52876488,0.0005288,120]
[320932728,1711716657667,-330.02,0.0005288,120]
[320932729,1711716657676,-155.0,0.00052899,4]
[320932730,1711716657685,-785.9052334,0.000529,31]
[320932731,1711716657695,-1309.41976687,0.000529,120]
[320932732,1711716657704,-199.63,0.000529,14]
[320932733,1711716657713,-1535295.15068845,0.000529,22]
[320932734,1711716657722,-151.0,0.000529,120]
[320932735,1711716657731,-151.0,0.000529,120]
[320932736,1711716657740,-151.0,0.000529,120]
[320932737,1711716657750,-151.0,0.000529,120]
[320932738,1711716657759,-151.0,0.000529,7]
[320932739,1711716657768,-256.314372,0.000529,120]
[320932740,1711716657777,-151.0,0.000529,120]
[320932741,1711716657786,-151.0,0.000529,120]
[320932742,1711716657795,-152.267618,0.000529,120]
[320932743,1711716657805,-152.515357,0.000529,120]
[320932744,1711716657814,-151.0,0.000529,120]
[320932745,1711716657823,-151.0,0.000529,120]
[320932746,1711716657833,-300.98,0.000529,2]
[320932747,1711716657842,-1000.0,0.0005292,120]
[320932748,1711716657852,-175.5936007,0.00052957,10]
[320932749,1711716657861,-30000.0,0.00053,120]
[320932750,1711716657870,-750.0,0.00053,120]
[320932751,1711716657880,-750.0,0.00053,120]
[320932752,1711716657890,-750.0,0.00053,120]
[320932753,1711716657899,-586.09,0.00053041,120]
[320932754,1711716657908,-623.33,0.00053041,120]
[320932755,1711716657918,-592.42,0.00053041,120]
[320932756,1711716657927,-500.0,0.00053041,120]
[320932757,1711716657936,-500.0,0.00053041,120]
[320932758,1711716657945,-500.0,0.00053041,120]
[320932759,1711716657955,-500.0,0.00053041,120]
[320932760,1711716657965,-691.21,0.00053041,120]
[320932761,1711716657974,-720.43,0.00053041,120]
[320932762,1711716657984,-3679.89,0.00053041,120]
[320932763,1711716657994,-874.18,0.00053041,120]
[320932764,1711716658003,-523.45,0.00053041,120]
[320932765,1711716658012,-2750.62,0.00053041,120]
[320932766,1711716658021,-500.0,0.00053041,120]
[320932767,1711716658177,-1000.0,0.00053064,120]
[320932768,1711716658187,-1014.64,0.000531,2]
[320932769,1711716658197,-1342.83520187,0.000531,2]
[320932770,1711716658207,-1782.96,0.0005315,120]
[320932771,1711716658217,-903.7,0.0005315,120]
[320932772,1711716658226,-500.0,0.0005315,120]
[320932773,1711716658235,-606.26,0.0005315,120]
[320932774,1711716658244,-1141.6,0.0005315,120]
[320932775,1711716658254,-809.83,0.0005315,120]
[320932776,1711716658264,-502.1,0.0005315,120]
[320932777,1711716658273,-4769.79,0.0005315,120]
[320932778,1711716658283,-650.47,0.0005315,120]
[320932779,1711716658293,-500.0,0.0005315,120]
[320932780,1711716658303,-500.0,0.0005315,120]
[320932781,1711716658312,-528.43,0.0005315,120]
[320932782,1711716658323,-534.25,0.0005315,21]
[320932783,1711716658334,-500.0,0.0005315,120]
[320932784,1711716658344,-500.0,0.0005315,120]
[320932785,1711716658354,-500.0,0.0005315,120]
[320932786,1711716658364,-500.0,0.0005315,120]
[320932787,1711716658375,-1337.23,0.0005315,120]
[320932788,1711716658385,-500.0,0.0005315,120]
[320932789,1711716658394,-576.41,0.0005315,120]
[320932790,1711716658404,-935.52,0.0005315,120]
[320932791,1711716658414,-164.24511082,0.0005315,120]
[320932792,1711716658424,-609.11,0.0005315,120]
[320932793,1711716658433,-500.0,0.0005315,120]
[320932794,1711716658443,-531.05,0.0005315,120]
[320932795,1711716658453,-500.0,0.0005315,120]
[320932796,1711716658462,-500.0,0.0005315,120]
[320932797,1711716658471,-731.96,0.0005315,120]
[320932798,1711716658481,-1153.11,0.0005315,120]
[320932799,1711716658492,-999.05,0.0005315,120]
[320932800,1711716658502,-999.22,0.0005315,120]
[320932801,1711716658511,-500.0,0.0005315,120]
[320932802,1711716658520,-1603.08,0.0005315,120]
[320932803,1711716658529,-500.0,0.0005315,120]
[320932804,1711716658539,-641.15,0.0005315,120]
[320932805,1711716658548,-500.0,0.0005315,120]
[320932806,1711716658557,-616.6,0.0005315,120]
[320932807,1711716658567,-500.0,0.0005315,120]
[320932808,1711716658577,-500.0,0.0005315,120]
[320932809,1711716658586,-1045.1,0.0005315,120]
[320932810,1711716658595,-500.0,0.0005315,120]
[320932811,1711716658604,-505.71,0.0005315,120]
[320932812,1711716658614,-678.59,0.0005315,120]
[320932813,1711716658623,-500.0,0.0005315,120]
[320932814,1711716658632,-581.67,0.0005315,120]
[320932815,1711716658642,-500.0,0.0005315,120]
[320932816,1711716658651,-732.12,0.0005315,120]
[320932817,1711716658661,-509.86,0.0005315,120]
[320932818,1711716658670,-1070.64,0.0005315,120]
[320932819,1711716658679,-779.78,0.0005315,120]
[320932820,1711716658689,-500.0,0.0005315,120]
[320932821,1711716658698,-500.0,0.0005315,120]
[320932822,1711716658707,-1366.39,0.0005315,120]
[320932823,1711716658717,-566.51,0.0005315,120]
[320932824,1711716658726,-500.0,0.0005315,120]
[320932825,1711716658736,-1473.55,0.0005315,120]
[320932826,1711716658745,-541.19,0.0005315,120]
[320932827,1711716658755,-542.47,0.0005315,120]
[320932828,1711716658765,-500.0,0.0005315,120]
[320932829,1711716658774,-500.0,0.0005315,120]
[320932830,1711716658784,-520.06,0.0005315,120]
[320932831,1711716658793,-500.0,0.0005315,120]
[320932832,1711716658802,-500.0,0.0005315,120]
[320932833,1711716658812,-618.22,0.0005315,120]
[320932834,1711716658821,-7484.31,0.0005315,120]
[320932835,1711716658831,-708.95,0.0005315,120]
[320932836,1711716658840,-756.87,0.0005315,120]
[320932837,1711716658849,-500.0,0.0005315,120]
[320932838,1711716658859,-1441.43,0.0005315,120]
[320932839,1711716658869,-1273.33,0.0005315,120]
[320932840,1711716658878,-674.57,0.0005315,120]
[320932841,1711716658887,-251.60561884,0.00053198,2]
[320932842,1711716658897,-15313.59332541,0.00053198,2]
[320932843,1711716658906,-1000.0,0.00053208,120]
[320932844,1711716658916,-376.47380883,0.0005325,2]
[320932845,1711716658925,-1122.45389362,0.0005325,120]
[320932846,1711716658935,-586.09,0.00053315,120]
[320932847,1711716658944,-623.33,0.00053315,120]
[320932848,1711716658953,-592.42,0.00053315,120]
[320932849,1711716658963,-500.0,0.00053315,120]
[320932850,1711716658972,-500.0,0.00053315,120]
[320932851,1711716658982,-500.0,0.00053315,120]
[320932852,1711716658992,-500.0,0.00053315,120]
[320932853,1711716659001,-691.21,0.00053315,120]
[320932854,1711716659011,-720.43,0.00053315,120]
[320932855,1711716659021,-3679.89,0.00053315,120]
[320932856,1711716659030,-874.18,0.00053315,120]
[320932857,1711716659039,-523.45,0.00053315,120]
[320932858,1711716659048,-2750.62,0.00053315,120]
[320932859,1711716659058,-500.0,0.00053315,120]
[320932860,1711716659068,-157.032921,0.00053348,113]
[320932861,1711716659077,-1000.0,0.00053353,120]
[320932862,1711716659087,-1782.96,0.00053424,120]
[320932863,1711716659096,-903.7,0.00053424,120]
[320932864,1711716659105,-500.0,0.00053424,120]
[320932865,1711716659114,-606.26,0.00053424,120]
[320932866,1711716659123,-1141.6,0.00053424,120]
[320932867,1711716659133,-809.83,0.00053424,120]
[320932868,1711716659143,-502.1,0.00053424,120]
[320932869,1711716659153,-888.0,0.00053424,120]
[320932870,1711716659163,-888.0,0.00053424,120]
[320932871,1711716659174,-888.0,0.00053424,120]
[320932872,1711716659183,-888.0,0.00053424,120]
[320932873,1711716659194,-888.0,0.00053424,120]
[320932874,1711716659205,-781.3696857,0.00053424,120]
[320932875,1711716659215,-4769.79,0.00053424,120]
[320932876,1711716659227,-650.47,0.00053424,120]
[320932877,1711716659240,-451.10026478,0.00053424,120]
[320932878,1711716659253,-500.0,0.00053424,120]
[320932879,1711716659264,-528.43,0.00053424,120]
[320932880,1711716659277,-534.25,0.00053424,21]
[320932881,1711716659289,-500.0,0.00053424,120]
[320932882,1711716659300,-500.0,0.00053424,120]
[320932883,1711716659311,-500.0,0.00053424,120]
[320932884,1711716659323,-500.0,0.00053424,120]
[320932885,1711716659333,-1337.23,0.00053424,120]
[320932886,1711716659344,-500.0,0.00053424,120]
[320932887,1711716659355,-576.41,0.00053424,120]
[320932888,1711716659366,-935.52,0.00053424,120]
[320932889,1711716659377,-609.11,0.00053424,120]
[320932890,1711716659388,-500.0,0.00053424,120]
[320932891,1711716659399,-531.05,0.00053424,120]
[320932892,1711716659409,-379.68114077,0.00053424,120]
[320932893,1711716659419,-500.0,0.00053424,120]
[320932894,1711716659429,-1000.44,0.00053424,120]
[320932895,1711716659439,-731.96,0.00053424,120]
[320932896,1711716659449,-1153.11,0.00053424,120]
[320932897,1711716659459,-999.05,0.00053424,120]
[320932898,1711716659469,-999.22,0.00053424,120]
[320932899,1711716659479,-500.0,0.00053424,120]
[320932900,1711716659496,-319.80885906,0.00053424,120]
[320932901,1711716659506,-1603.08,0.00053424,120]
[320932902,1711716659517,-641.15,0.00053424,120]
[320932903,1711716659526,-375.37568767,0.00053424,120]
[320932904,1711716659536,-616.6,0.00053424,120]
[320932905,1711716659546,-485.02680229,0.00053424,120]
[320932906,1711716659555,-213.90619718,0.00053424,120]
[320932907,1711716659565,-1045.1,0.00053424,120]
[320932908,1711716659574,-500.0,0.00053424,120]
[320932909,1711716659584,-505.71,0.00053424,120]
[320932910,1711716659593,-678.59,0.00053424,120]
[320932911,1711716659603,-500.0,0.00053424,120]
[320932912,1711716659612,-581.67,0.00053424,120]
[320932913,1711716659622,-500.0,0.00053424,120]
[320932914,1711716659631,-732.12,0.00053424,120]
[320932915,1711716659640,-509.86,0.00053424,120]
[320932916,1711716659650,-1070.64,0.00053424,120]
[320932917,1711716659659,-779.78,0.00053424,120]
[320932918,1711716659669,-198.62911274,0.00053424,120]
[320932919,1711716659678,-500.0,0.00053424,120]
[320932920,1711716659687,-1366.39,0.00053424,120]
[320932921,1711716659696,-566.51,0.00053424,120]
[320932922,1711716659706,-500.0,0.00053424,120]
[320932923,1711716659715,-1473.55,0.00053424,120]
[320932924,1711716659725,-541.19,0.00053424,120]
[320932925,1711716659734,-542.47,0.00053424,120]
[320932926,1711716659746,-500.0,0.00053424,120]
[320932927,1711716659756,-385.57193344,0.00053424,120]
[320932928,1711716659765,-520.06,0.00053424,120]
[320932929,1711716659776,-500.0,0.00053424,120]
[320932930,1711716659785,-500.0,0.00053424,120]
[320932931,1711716659795,-618.22,0.00053424,120]
[320932932,1711716659804,-7484.31,0.00053424,120]
[320932933,1711716659813,-708.95,0.00053424,120]
[320932934,1711716659822,-756.87,0.00053424,120]
[320932935,1711716659831,-500.0,0.00053424,120]
[320932936,1711716659841,-1441.43,0.00053424,120]
[320932937,1711716659850,-1273.33,0.00053424,120]
[320932938,1711716659859,-674.57,0.00053424,120]
[320932939,1711716659868,-267.31111111,0.00053425,120]
[320932940,1711716659877,-161.032921,0.00053448,112]
[320932941,1711716659886,-3854.59412973,0.00053463,31]
[320932942,1711716659896,-206.84,0.00053468,120]
[320932943,1711716659905,-1000.0,0.00053497,120]
[320932944,1711716659914,-750.0,0.000535,120]
[320932945,1711716659924,-750.0,0.000535,120]
[320932946,1711716659933,-750.0,0.000535,120]
[320932947,1711716659943,-162.21511491,0.00053582,60]
[320932948,1711716659952,-586.09,0.00053589,120]
[320932949,1711716659961,-623.33,0.00053589,120]
[320932950,1711716659971,-592.42,0.00053589,120]
[320932951,1711716659981,-500.0,0.00053589,120]
[320932952,1711716659992,-500.0,0.00053589,120]
[320932953,1711716660001,-500.0,0.00053589,120]
[320932954,1711716660010,-500.0,0.00053589,120]
[320932955,1711716660019,-691.21,0.00053589,120]
[320932956,1711716660028,-720.43,0.00053589,120]
[320932957,1711716660037,-3679.89,0.00053589,120]
[320932958,1711716660047,-874.18,0.00053589,120]
[320932959,1711716660056,-523.45,0.00053589,120]
[320932960,1711716660066,-2750.62,0.00053589,120]
[320932961,1711716660076,-500.0,0.00053589,120]
[320932962,1711716660086,-1000.0,0.00053641,120]
[320932963,1711716660095,-1782.96,0.00053698,120]
[320932964,1711716660105,-903.7,0.00053698,120]
[320932965,1711716660114,-500.0,0.00053698,120]
[320932966,1711716660123,-606.26,0.00053698,120]
[320932967,1711716660133,-1141.6,0.00053698,120]
[320932968,1711716660142,-809.83,0.00053698,120]
[320932969,1711716660152,-502.1,0.00053698,120]
[320932970,1711716660161,-4769.79,0.00053698,120]
[320932971,1711716660170,-650.47,0.00053698,120]
[320932972,1711716660180,-207.3465593,0.00053698,120]
[320932973,1711716660189,-528.43,0.00053698,120]
[320932974,1711716660199,-534.25,0.00053698,21]
[320932975,1711716660208,-500.0,0.00053698,120]
[320932976,1711716660218,-500.0,0.00053698,120]
[320932977,1711716660227,-500.0,0.00053698,120]
[320932978,1711716660239,-500.0,0.00053698,120]
[320932979,1711716660249,-1337.23,0.00053698,120]
[320932980,1711716660260,-500.0,0.00053698,120]
[320932981,1711716660270,-576.41,0.00053698,120]
[320932982,1711716660280,-935.52,0.00053698,120]
[320932983,1711716660290,-609.11,0.00053698,120]
[320932984,1711716660299,-151.0,0.00053698,120]
[320932985,1711716660309,-500.0,0.00053698,120]
[320932986,1711716660319,-531.05,0.00053698,120]
[320932987,1711716660331,-500.0,0.00053698,120]
[320932988,1711716660341,-731.96,0.00053698,120]
[320932989,1711716660350,-1153.11,0.00053698,120]
[320932990,1711716660360,-999.05,0.00053698,120]
[320932991,1711716660370,-999.22,0.00053698,120]
[320932992,1711716660380,-348.17998862,0.00053698,120]
[320932993,1711716660389,-1603.08,0.00053698,120]
[320932994,1711716660399,-641.15,0.00053698,120]
[320932995,1711716660409,-616.6,0.00053698,120]
[320932996,1711716660418,-1045.1,0.00053698,120]
[320932997,1711716660427,-500.0,0.00053698,120]
[320932998,1711716660437,-505.71,0.00053698,120]
[320932999,1711716660446,-678.59,0.00053698,120]
[320933000,1711716660455,-368.04470359,0.00053698,120]
[320933001,1711716660464,-581.67,0.00053698,120]
[320933002,1711716660474,-500.0,0.00053698,120]
[320933003,1711716660483,-732.12,0.00053698,120]
[320933004,1711716660531,-509.86,0.00053698,120]
[320933005,1711716660540,-1070.64,0.00053698,120]
[320933006,1711716660550,-779.78,0.00053698,120]
[320933007,1711716660559,-500.0,0.00053698,120]
[320933008,1711716660568,-1366.39,0.00053698,120]
[320933009,1711716660577,-566.51,0.00053698,120]
[320933010,1711716660586,-500.0,0.00053698,120]
[320933011,1711716660595,-1473.55,0.00053698,120]
[320933012,1711716660605,-541.19,0.00053698,120]
[320933013,1711716660614,-542.47,0.00053698,120]
[320933014,1711716660623,-500.0,0.00053698,120]
[320933015,1711716660632,-520.06,0.00053698,120]
[320933016,1711716660642,-500.0,0.00053698,120]
[320933017,1711716660651,-513.3755176,0.00053698,120]
[320933018,1711716660660,-618.22,0.00053698,120]
[320933019,1711716660669,-7484.31,0.00053698,120]
[320933020,1711716660678,-708.95,0.00053698,120]
[320933021,1711716660687,-756.87,0.00053698,120]
[320933022,1711716660696,-500.0,0.00053698,120]
[320933023,1711716660706,-1441.43,0.00053698,120]
[320933024,1711716660715,-1273.33,0.00053698,120]
[320933025,1711716660724,-674.57,0.00053698,120]
[320933026,1711716660733,-2028.06,0.00053746,120]
[320933027,1711716660744,-386.92448372,0.0005375,30]
[320933028,1711716660753,-151.0,0.00053781,120]
[320933029,1711716660762,-1000.0,0.00053785,120]
[320933030,1711716660771,-19884.37747657,0.000538,7]
[320933031,1711716660781,-586.09,0.00053863,120]